bitfinex/quotes_SOLUSD_20220207
["timestamp","ask_amount","ask_price","bid_price","bid_amount"]
[1644260221197,51.5801386,119.92,119.84,0.024]
[1644260221598,63.6201386,119.92,119.84,0.024]
[1644260221800,63.6201386,119.92,119.84,47.2810424]
[1644260222001,76.1355386,119.92,119.84,47.2810424]
[1644260222198,76.1355386,119.92,119.84,47.5310424]
[1644260223402,63.6201386,119.92,119.84,47.5310424]
[1644260224203,63.8701386,119.92,119.84,47.5310424]
[1644260224403,63.8701386,119.92,119.84,0.274]
[1644260224802,63.8701386,119.92,119.84,0.024]
[1644260225907,76.3865386,119.92,119.84,0.024]
[1644260231115,0.31085935,119.91,119.84,0.024]
[1644260231312,0.31085935,119.91,119.83,0.024]
[1644260231313,12.5193,119.89,119.83,0.024]
[1644260231513,24.5593,119.89,119.83,0.024]
[1644260231714,2.14682857,119.88,119.81,24.1974]
[1644260231913,47.47944471,119.88,119.81,68.15069394]
[1644260232114,53.72944471,119.88,119.81,68.15069394]
[1644260232315,53.72944471,119.88,119.81,68.40069394]
[1644260232514,51.58261614,119.88,119.81,68.40069394]
[1644260232715,2.14682857,119.87,119.81,24.4474]
[1644260233117,2.14682857,119.87,119.78,0.024]
[1644260233317,14.66702857,119.87,119.78,0.024]
[1644260233517,32.70702857,119.87,119.78,0.024]
[1644260233720,41.82546191,119.86,119.78,0.024]
[1644260233918,53.86546191,119.86,119.78,0.024]
[1644260234118,2.14682857,119.85,119.78,0.024]
[1644260234318,43.98554193,119.84,119.77,42.58333434]
[1644260234720,56.50854193,119.84,119.77,42.58333434]
[1644260235920,56.50854193,119.84,119.77,42.83333434]
[1644260236125,56.50854193,119.84,119.77,6.25]
[1644260236329,56.50854193,119.84,119.77,0.25]
[1644260236525,12.523,119.84,119.75,0.024]
[1644260236727,23.4272,119.85,119.75,0.024]
[1644260236933,30.5608,119.86,119.75,0.024]
[1644260237528,63.22151776,119.86,119.75,39.12903244]
[1644260237729,50.70071776,119.86,119.77,46.78951997]
[1644260237929,50.70071776,119.86,119.78,0.024]
[1644260238329,12.04,119.86,119.78,0.024]
[1644260238539,14.18682857,119.89,119.78,0.024]
[1644260238740,22.782,119.9,119.78,23.7403]
[1644260238945,35.2985,119.9,119.8,12.5154]
[1644260239145,35.2985,119.9,119.81,0.024]
[1644260239341,79.53144025,119.9,119.81,40.2265218]
[1644260239541,35.2985,119.9,119.82,0.024]
[1644260239742,22.782,119.9,119.82,0.024]
[1644260240342,2.14682857,119.92,119.82,0.024]
[1644260240545,36.96796583,119.91,119.82,23.9009]
[1644260240743,2.14682857,119.92,119.83,0.024]
[1644260241743,48.00988981,119.92,119.83,38.18570469]
[1644260241944,60.52428981,119.92,119.84,0.024]
[1644260242745,60.77428981,119.92,119.84,0.024]
[1644260244848,14.66122857,119.92,119.84,0.024]
[1644260245048,2.14682857,119.92,119.84,0.024]
[1644260245449,38.33922857,119.97,119.84,0.024]
[1644260245650,2.14682857,119.97,119.84,43.621]
[1644260245848,37.08406156,119.97,119.85,35.49858862]
[1644260246047,37.08406156,119.97,119.87,47.36925834]
[1644260246248,37.08406156,119.97,119.87,47.64325834]
[1644260246449,37.08406156,119.97,119.87,53.64325834]
[1644260246849,37.08406156,119.97,119.87,66.15225834]
[1644260247049,2.14682857,119.97,119.87,66.15225834]
[1644260247451,2.14682857,119.97,119.87,88.85905834]
[1644260247852,2.39682857,119.97,119.87,88.85905834]
[1644260248051,2.14682857,119.97,119.87,88.85905834]
[1644260248852,12.3535,119.99,119.87,88.85905834]
[1644260249052,2.14682857,119.97,119.87,115.90485834]
[1644260249851,43.75101486,119.97,119.87,115.90485834]
[1644260250052,43.75101486,119.97,119.87,111.73685834]
[1644260250752,43.75101486,119.97,119.87,111.48685834]
[1644260251153,56.25981486,119.97,119.87,111.48685834]
[1644260251355,68.65529484,119.97,119.87,53.39325834]
[1644260251555,86.94529484,119.97,119.87,47.39325834]
[1644260251756,86.94529484,119.97,119.87,0.024]
[1644260251956,4.168,119.96,119.83,0.024]
[1644260252253,14.18682857,119.95,119.83,0.024]
[1644260252454,23.73,119.94,119.83,0.024]
[1644260252655,44.06329362,119.93,119.83,46.83612863]
[1644260252855,58.72282219,119.93,119.84,0.024]
[1644260253060,14.18682857,119.92,119.84,0.024]
[1644260253255,43.88333903,119.91,119.84,0.024]
[1644260253458,58.0701676,119.91,119.83,46.83612863]
[1644260253656,2.14682857,119.9,119.83,46.83612863]
[1644260253855,45.59876728,119.89,119.83,46.83612863]
[1644260254057,58.11536728,119.89,119.83,46.81212863]
[1644260254456,58.11536728,119.89,119.83,47.06212863]
[1644260254657,58.11536728,119.89,119.83,0.25]
[1644260255257,58.11536728,119.89,119.82,47.7552]
[1644260255458,58.11536728,119.89,119.82,53.7552]
[1644260255658,58.11536728,119.89,119.82,90.03154556]
[1644260256460,58.11536728,119.89,119.82,47.7552]
[1644260256659,58.11536728,119.89,119.82,53.7552]
[1644260256962,58.11536728,119.89,119.82,47.7552]
[1644260258060,58.11536728,119.89,119.82,47.7312]
[1644260259160,72.30219585,119.89,119.8,0.024]
[1644260259363,72.30219585,119.89,119.78,0.024]
[1644260259563,78.30219585,119.89,119.77,0.024]
[1644260259762,72.30219585,119.89,119.79,0.024]
[1644260259964,57.63876728,119.89,119.77,8.52241673]
[1644260260162,57.63876728,119.89,119.81,12.5153]
[1644260260567,57.63876728,119.89,119.81,18.7653]
[1644260260962,70.15516728,119.89,119.81,18.7653]
[1644260261264,70.15516728,119.89,119.82,43.88921489]
[1644260261663,70.15516728,119.89,119.82,6.25]
[1644260262065,70.15516728,119.89,119.82,0.25]
[1644260262263,70.15516728,119.89,119.82,6.25]
[1644260262865,70.15516728,119.89,119.83,38.19935224]
[1644260263264,70.15516728,119.89,119.83,38.44935224]
[1644260263464,57.63876728,119.89,119.83,38.44935224]
[1644260264568,12.04,119.89,119.83,44.44935224]
[1644260265165,12.04,119.91,119.83,38.44935224]
[1644260265364,12.04,119.91,119.84,0.024]
[1644260265565,42.82802389,119.9,119.83,63.26345224]
[1644260265964,42.82802389,119.9,119.83,69.26345224]
[1644260266566,48.82802389,119.9,119.83,63.26345224]
[1644260267967,61.34302389,119.9,119.83,63.26345224]
[1644260268973,61.34302389,119.9,119.83,69.26345224]
[1644260269471,61.34302389,119.9,119.83,63.26345224]
[1644260269675,61.34302389,119.9,119.83,69.26345224]
[1644260270170,63.48985246,119.9,119.83,69.26345224]
[1644260271973,12.5136,119.92,119.83,75.77645224]
[1644260272177,2.14682857,119.92,119.83,81.75245224]
[1644260272374,113.1,119.93,119.83,81.75245224]
[1644260272375,113.1,119.93,119.84,0.024]
[1644260272976,34.819392,119.92,119.84,0.024]
[1644260273579,34.819392,119.92,119.84,12.5349]
[1644260273776,36.96622057,119.92,119.85,36.40635588]
[1644260274176,36.96622057,119.92,119.85,0.25]
[1644260274577,37.21622057,119.92,119.85,0.25]
[1644260274977,49.72902057,119.92,119.85,0.25]
[1644260275377,49.72902057,119.92,119.84,50.12907434]
[1644260275677,49.47902057,119.92,119.84,50.12907434]
[1644260279279,49.47902057,119.92,119.84,6.274]
[1644260279980,67.51902057,119.92,119.84,0.274]
[1644260280186,103.44855366,119.92,119.84,0.25]
[1644260280380,115.84403364,119.92,119.83,0.024]
[1644260280581,125.73134826,119.92,119.83,0.024]
[1644260281882,129.90234826,119.92,119.83,0.024]
[1644260282283,0.3172789,119.89,119.81,0.024]
[1644260282485,12.5197,119.87,119.81,0.024]
[1644260282687,24.5597,119.87,119.8,1.21099165]
[1644260283084,38.98755992,119.86,119.8,1.21099165]
[1644260283482,38.98755992,119.86,119.8,1.46099165]
[1644260283685,12.52,119.85,119.8,1.46099165]
[1644260283882,35.89817127,119.84,119.8,1.43699165]
[1644260284183,35.89817127,119.84,119.8,1.18699165]
[1644260284584,38.04499984,119.84,119.78,1.21099165]
[1644260284784,38.04499984,119.84,119.77,1.18699165]
[1644260285394,38.04499984,119.84,119.77,6.0]
[1644260285591,50.56589984,119.84,119.76,7.21099165]
[1644260285792,48.41907127,119.84,119.76,7.21099165]
[1644260285992,48.41907127,119.84,119.77,1.18699165]
[1644260286193,48.41907127,119.84,119.77,7.43699165]
[1644260286393,48.41907127,119.84,119.77,52.6750135]
[1644260286794,60.45907127,119.84,119.77,52.6750135]
[1644260286996,60.45907127,119.84,119.77,7.43699165]
[1644260287197,60.45907127,119.84,119.77,6.25]
[1644260287820,60.45907127,119.84,119.77,6.0]
[1644260288219,60.70907127,119.84,119.78,48.04200858]
[1644260288521,12.04,119.86,119.78,48.04200858]
[1644260288721,12.04,119.89,119.78,55.22900023]
[1644260288920,12.04,119.89,119.79,24.57879165]
[1644260289120,18.04,119.89,119.79,30.57879165]
[1644260289320,18.04,119.89,119.79,30.82879165]
[1644260289521,47.16928683,119.88,119.8,38.95003319]
[1644260289722,59.68658683,119.88,119.81,0.024]
[1644260289923,65.68658683,119.88,119.8,6.274]
[1644260290523,65.68658683,119.88,119.8,0.274]
[1644260290724,65.68658683,119.88,119.8,36.57593781]
[1644260290923,65.68658683,119.88,119.8,36.32593781]
[1644260291124,65.68658683,119.88,119.8,42.57593781]
[1644260291726,65.93658683,119.88,119.8,42.57593781]
[1644260292425,65.93658683,119.88,119.8,6.274]
[1644260292625,65.93658683,119.88,119.8,0.274]
[1644260292830,90.37206681,119.88,119.8,0.024]
[1644260293428,96.69089538,119.88,119.8,0.024]
[1644260293629,12.5211,119.85,119.8,0.024]
[1644260293829,34.33244759,119.84,119.78,7.18699165]
[1644260294130,34.33244759,119.84,119.78,6.024]
[1644260294329,34.33244759,119.84,119.78,6.0]
[1644260294529,34.33244759,119.84,119.77,31.57109165]
[1644260294730,46.85344759,119.84,119.78,41.83279799]
[1644260295131,46.85344759,119.84,119.78,6.25]
[1644260295733,46.85344759,119.84,119.78,0.25]
[1644260296144,46.85344759,119.84,119.77,30.3841]
[1644260296333,46.85344759,119.84,119.77,6.024]
[1644260296634,46.85344759,119.84,119.77,0.024]
[1644260297234,58.89344759,119.84,119.77,0.024]
[1644260297434,61.04027616,119.84,119.77,0.024]
[1644260298035,90.69227616,119.84,119.77,0.024]
[1644260299736,84.94227616,119.84,119.77,0.024]
[1644260300839,90.94227616,119.84,119.77,0.024]
[1644260303044,84.94227616,119.84,119.77,0.024]
[1644260304951,84.69227616,119.84,119.77,0.024]
[1644260305149,90.69227616,119.84,119.77,0.024]
[1644260305752,84.69227616,119.84,119.77,0.024]
[1644260306080,90.69227616,119.84,119.77,0.024]
[1644260306674,84.69227616,119.84,119.77,0.024]
[1644260307976,90.69227616,119.84,119.77,0.024]
[1644260308782,90.94227616,119.84,119.77,0.024]
[1644260309779,84.94227616,119.84,119.77,0.024]
[1644260309979,90.94227616,119.84,119.77,0.024]
[1644260310580,101.41584759,119.84,119.77,0.024]
[1644260310781,95.41584759,119.84,119.77,0.024]
[1644260311585,101.41584759,119.84,119.77,0.024]
[1644260311783,13.58021332,119.83,119.77,0.024]
[1644260311985,12.5253,119.82,119.75,0.024]
[1644260312184,12.04,119.81,119.73,1.21099165]
[1644260312384,14.18682857,119.81,119.74,0.024]
[1644260312583,28.07270812,119.81,119.74,0.024]
[1644260312784,39.72912506,119.8,119.74,0.024]
[1644260312983,51.76912506,119.8,119.73,1.18699165]
[1644260313182,51.76912506,119.8,119.72,7.6887064]
[1644260313383,51.76912506,119.8,119.72,1.6887064]
[1644260313587,14.67332857,119.79,119.72,6.50171475]
[1644260313884,14.67332857,119.79,119.72,0.52571475]
[1644260313885,12.5265,119.79,119.72,0.52571475]
[1644260314085,2.14682857,119.78,119.72,0.52571475]
[1644260314284,84.74781523,119.8,119.72,0.50171475]
[1644260314486,84.74781523,119.8,119.72,0.52571475]
[1644260315286,98.32802855,119.8,119.72,0.52571475]
[1644260315889,12.5291,119.77,119.72,0.52571475]
[1644260316189,40.42470725,119.76,119.72,0.52571475]
[1644260316385,40.42470725,119.76,119.72,0.50171475]
[1644260316985,52.95310725,119.76,119.72,0.50171475]
[1644260319098,55.09993582,119.76,119.72,0.50171475]
[1644260320598,14.67522857,119.76,119.72,0.50171475]
[1644260320796,13.67522857,119.76,119.72,0.50171475]
[1644260321093,0.00682857,119.78,119.72,0.50171475]
[1644260321295,12.6204,119.84,119.72,0.50171475]
[1644260321493,12.6204,119.84,119.73,0.024]
[1644260321693,43.54341973,119.83,119.73,34.85276612]
[1644260321894,12.5229,119.82,119.74,0.024]
[1644260322408,24.5629,119.82,119.74,0.024]
[1644260322897,45.16658565,119.81,119.74,0.024]
[1644260323099,12.5261,119.79,119.74,0.024]
[1644260323297,35.14250844,119.78,119.73,38.77887308]
[1644260323599,35.14250844,119.78,119.73,44.77887308]
[1644260323801,35.14250844,119.78,119.73,6.0]
[1644260324198,47.66870844,119.78,119.73,6.0]
[1644260324398,47.66870844,119.78,119.72,29.80441475]
[1644260324819,47.66870844,119.78,119.72,6.50171475]
[1644260324998,47.66870844,119.78,119.72,0.50171475]
[1644260328601,72.58130844,119.78,119.72,0.50171475]
[1644260329203,39.77709916,119.76,119.72,0.50171475]
[1644260329403,52.30789916,119.76,119.72,0.50171475]
[1644260330907,41.7693,119.77,119.72,0.50171475]
[1644260331109,4.175,119.82,119.72,0.50171475]
[1644260331310,12.6204,119.84,119.73,12.064]
[1644260331514,25.1412,119.84,119.74,24.4967]
[1644260332010,45.84100289,119.83,119.74,42.8107]
[1644260332209,45.84100289,119.83,119.74,30.7707]
[1644260332432,48.23783146,119.83,119.75,0.024]
[1644260332627,2.14682857,119.82,119.75,0.024]
[1644260332828,12.5252,119.81,119.74,6.0]
[1644260333038,45.78600742,119.8,119.74,6.024]
[1644260333232,45.78600742,119.8,119.74,0.274]
[1644260333434,47.93283599,119.8,119.74,6.274]
[1644260334040,45.41065596,119.78,119.74,6.274]
[1644260334236,45.41065596,119.78,119.74,6.25]
[1644260334835,45.41065596,119.78,119.74,0.25]
[1644260335033,57.93745596,119.78,119.72,46.61421627]
[1644260335240,57.93745596,119.78,119.72,46.59021627]
[1644260335439,57.93745596,119.78,119.72,6.75171475]
[1644260335640,57.93745596,119.78,119.72,0.75171475]
[1644260335841,57.93745596,119.78,119.72,6.50171475]
[1644260336041,57.93745596,119.78,119.72,6.75171475]
[1644260336437,57.93745596,119.78,119.72,0.75171475]
[1644260337338,60.08428453,119.78,119.72,0.50171475]
[1644260338138,83.37658453,119.78,119.72,0.50171475]
[1644260338740,102.78807755,119.78,119.72,0.50171475]
[1644260339942,0.30275239,119.76,119.72,0.50171475]
[1644260340141,12.34275239,119.76,119.72,0.50171475]
[1644260340340,12.5329,119.75,119.72,0.50171475]
[1644260341040,56.26588096,119.76,119.72,0.50171475]
[1644260341041,37.55705551,119.74,119.72,0.50171475]
[1644260341646,12.84067458,119.73,119.69,0.024]
[1644260341848,14.98750315,119.73,119.68,6.0]
[1644260342042,2.14682857,119.72,119.65,0.024]
[1644260342242,37.55705551,119.74,119.65,42.45581249]
[1644260342442,37.55705551,119.74,119.65,43.66680414]
[1644260342642,37.55705551,119.74,119.65,49.66680414]
[1644260343044,37.55705551,119.74,119.65,49.91680414]
[1644260343243,50.08835551,119.74,119.66,1.18699165]
[1644260343445,12.5313,119.74,119.67,35.55081361]
[1644260343643,24.9911,119.76,119.67,41.57481361]
[1644260343845,2.14682857,119.77,119.67,41.82481361]
[1644260344045,2.14682857,119.77,119.68,24.7425]
[1644260344248,12.5293,119.76,119.68,24.9925]
[1644260344445,50.7209109,119.76,119.69,39.3690376]
[1644260344645,50.7209109,119.76,119.69,45.3690376]
[1644260344845,50.7209109,119.76,119.69,45.6190376]
[1644260346550,12.5293,119.76,119.69,45.6190376]
[1644260346756,12.5272,119.77,119.69,46.80602925]
[1644260346957,2.14682857,119.81,119.7,13.25099165]
[1644260347150,2.14682857,119.81,119.71,23.4627]
[1644260347350,2.14682857,119.81,119.71,23.7367]
[1644260347551,40.29130152,119.8,119.72,42.84619256]
[1644260347750,40.29130152,119.8,119.73,0.024]
[1644260347956,14.67282857,119.79,119.72,49.09619256]
[1644260348357,2.14682857,119.82,119.72,49.78318421]
[1644260348657,2.14682857,119.84,119.73,36.52099165]
[1644260348852,2.14682857,119.84,119.74,0.024]
[1644260349052,2.14682857,119.84,119.74,13.25099165]
[1644260349358,47.81738683,119.83,119.76,41.26387275]
[1644260349554,47.81738683,119.83,119.76,47.26387275]
[1644260349754,47.81738683,119.83,119.76,47.51387275]
[1644260351081,47.81738683,119.83,119.76,60.03347275]
[1644260351256,2.14682857,119.84,119.76,60.03347275]
[1644260351862,12.5181,119.87,119.77,12.04]
[1644260352057,5.33215048,119.91,119.8,12.5156]
[1644260352257,2.14682857,119.92,119.81,39.23112294]
[1644260352457,39.33636352,119.93,119.81,51.27112294]
[1644260352756,12.5127,119.93,119.81,59.46894692]
[1644260352959,18.84513295,119.96,119.82,4.171]
[1644260353160,6.13903,119.96,119.82,34.7237]
[1644260353359,6.13903,119.96,119.83,1.94782398]
[1644260353560,6.13903,119.96,119.84,12.04]
[1644260353759,6.13903,119.96,119.85,45.0821701]
[1644260353957,6.13903,119.96,119.85,57.1221701]
[1644260354159,6.13903,119.96,119.85,63.3721701]
[1644260354760,46.68363868,119.97,119.86,12.5075]
[1644260354961,46.68363868,119.97,119.87,41.91158642]
[1644260355161,46.68363868,119.97,119.87,47.91158642]
[1644260355362,48.83046725,119.97,119.87,47.91158642]
[1644260355561,54.83046725,119.97,119.87,6.0]
[1644260355763,66.87046725,119.97,119.87,6.0]
[1644260355962,66.87046725,119.97,119.85,30.3056]
[1644260356564,66.87046725,119.97,119.86,39.64347165]
[1644260356972,79.37916725,119.97,119.86,45.64347165]
[1644260357365,79.37916725,119.97,119.83,4.168]
[1644260357567,0.30456161,119.92,119.83,4.168]
[1644260357766,12.04,119.91,119.79,22.5429]
[1644260357969,14.18682857,119.91,119.79,22.5429]
[1644260358166,18.04,119.91,119.79,22.5429]
[1644260358365,18.04,119.91,119.78,83.9955]
[1644260358366,12.5184,119.88,119.8,39.61362657]
[1644260358589,60.73490604,119.88,119.8,39.61362657]
[1644260358990,48.21650604,119.88,119.8,45.61362657]
[1644260359190,48.21650604,119.88,119.8,45.86362657]
[1644260359594,12.04,119.9,119.8,45.86362657]
[1644260359891,0.03637096,119.94,119.81,1.94347833]
[1644260360191,0.03637096,119.94,119.81,8.19347833]
[1644260360396,0.03637096,119.94,119.81,7.94347833]
[1644260360592,38.62370409,119.94,119.82,38.61431516]
[1644260360791,38.62370409,119.94,119.82,40.55779349]
[1644260360992,51.13550409,119.94,119.84,12.5102]
[1644260361195,51.13550409,119.94,119.85,42.00590311]
[1644260361601,51.13550409,119.94,119.85,48.00590311]
[1644260361793,12.04,119.93,119.85,48.00590311]
[1644260361993,12.07637096,119.93,119.85,48.00590311]
[1644260362695,0.03637096,119.93,119.85,49.94938144]
[1644260362895,12.07637096,119.95,119.85,49.94938144]
[1644260363096,0.03637096,119.94,119.85,49.94938144]
[1644260363295,0.03637096,119.98,119.85,50.19938144]
[1644260363495,43.51117213,119.98,119.85,50.19938144]
[1644260363696,0.03637096,119.97,119.85,50.19938144]
[1644260363895,0.03637096,119.97,119.85,64.93320311]
[1644260364797,0.03637096,119.97,119.85,66.87184854]
[1644260365199,0.03637096,119.98,119.85,78.91184854]
[1644260365596,0.03637096,120.0,119.85,78.91184854]
[1644260365796,64.3794,120.01,119.85,78.91184854]
[1644260365797,0.03637096,119.97,119.85,78.91184854]
[1644260365998,0.03637096,119.99,119.86,164.78113123]
[1644260366220,0.03637096,119.96,119.89,12.5019]
[1644260366401,0.03637096,119.98,119.9,58.21390311]
[1644260366599,0.03637096,120.05,119.9,66.15254854]
[1644260366804,0.03637096,120.05,119.91,1.93864543]
[1644260366999,0.03637096,120.08,119.92,12.04]
[1644260367204,0.03637096,120.04,119.92,66.4995]
[1644260367404,12.5001,120.06,119.93,40.22471948]
[1644260367600,42.97980372,120.05,119.93,58.26471948]
[1644260367798,43.01688575,120.05,119.93,58.51471948]
[1644260368202,12.04,120.04,119.93,44.54092193]
[1644260368399,44.52362126,120.03,119.93,44.54092193]
[1644260368600,0.03708203,120.02,119.93,44.54092193]
[1644260370902,0.03708203,120.02,119.93,6.25]
[1644260371200,12.07708203,120.02,119.93,0.25]
[1644260371401,14.2239106,120.02,119.93,6.0]
[1644260371602,10.01,120.01,119.89,4.167]
[1644260371800,0.03708203,120.0,119.84,48.1952]
[1644260372002,10.01,119.99,119.85,46.17767212]
[1644260372201,46.05747829,119.98,119.85,46.17767212]
[1644260372404,0.03708203,119.97,119.85,46.17767212]
[1644260372606,0.03708203,119.97,119.85,58.68677212]
[1644260372802,0.03708203,119.97,119.85,58.93677212]
[1644260373002,0.03708203,119.97,119.85,64.93677212]
[1644260373200,10.01,119.96,119.85,46.17767212]
[1644260373403,38.55376173,119.95,119.85,46.17767212]
[1644260373600,12.54988203,119.94,119.84,23.9501]
[1644260373801,0.31309847,119.91,119.8,1.93379755]
[1644260374003,10.01,119.9,119.81,6.13737]
[1644260374301,12.31782857,119.9,119.81,6.13737]
[1644260374504,8.14682857,119.9,119.81,6.13737]
[1644260374704,12.5191,119.88,119.82,44.55511238]
[1644260375103,12.5191,119.88,119.82,44.80511238]
[1644260375505,12.5191,119.88,119.82,50.80511238]
[1644260375708,10.01,119.9,119.82,50.80511238]
[1644260375904,22.56168203,119.92,119.82,52.73890993]
[1644260376101,28.5246,119.92,119.82,52.73890993]
[1644260376301,28.5246,119.92,119.82,50.80511238]
[1644260376501,39.10505078,119.91,119.82,50.80511238]
[1644260376703,16.01,119.92,119.82,50.55511238]
[1644260376905,10.01,119.92,119.83,1.93379755]
[1644260377103,10.01,119.92,119.83,7.93379755]
[1644260377305,10.01,119.92,119.83,6.0]
[1644260377706,40.84418435,119.91,119.84,42.43864414]
[1644260377902,12.5163,119.9,119.79,7.93379755]
[1644260378103,12.5163,119.9,119.83,0.25]
[1644260378302,22.5263,119.9,119.79,6.25]
[1644260378502,22.5263,119.9,119.79,0.25]
[1644260378703,22.5263,119.9,119.79,6.0]
[1644260378901,48.29852267,119.89,119.8,40.10340259]
[1644260379104,62.96315124,119.89,119.77,47.1202]
[1644260379404,2.14682857,119.88,119.77,47.1202]
[1644260379601,12.15682857,119.88,119.77,47.1202]
[1644260380002,36.99365124,119.87,119.78,42.73436911]
[1644260380501,36.99365124,119.87,119.78,48.73436911]
[1644260380901,12.5207,119.86,119.78,48.73436911]
[1644260381301,34.53815875,119.85,119.78,48.73436911]
[1644260381705,34.53815875,119.85,119.78,48.98436911]
[1644260382304,34.53815875,119.85,119.78,48.73436911]
[1644260382504,12.5207,119.86,119.78,48.73436911]
[1644260383704,12.5207,119.86,119.78,48.98436911]
[1644260383908,41.53268067,119.85,119.78,48.98436911]
[1644260384405,12.7707,119.86,119.78,48.98436911]
[1644260385305,12.5207,119.86,119.78,48.73436911]
[1644260385510,48.26622047,119.86,119.78,48.73436911]
[1644260385707,48.51622047,119.86,119.78,48.73436911]
[1644260386605,48.51622047,119.86,119.78,6.0]
[1644260386806,48.51622047,119.86,119.78,0.25]
[1644260386807,60.67304904,119.86,119.78,0.25]
[1644260387006,60.67304904,119.86,119.75,0.024]
[1644260387207,0.3038064,119.84,119.75,0.024]
[1644260387414,12.527,119.82,119.75,0.024]
[1644260387606,47.38924078,119.81,119.75,0.024]
[1644260389008,59.91534078,119.81,119.75,0.024]
[1644260389610,12.5261,119.81,119.75,0.024]
[1644260390612,10.01,119.84,119.75,0.024]
[1644260390810,48.33528708,119.83,119.75,12.5446]
[1644260391011,48.33528708,119.83,119.76,39.25820864]
[1644260391212,48.33528708,119.83,119.76,45.48420864]
[1644260391411,48.33528708,119.83,119.76,45.50820864]
[1644260391613,48.33528708,119.83,119.76,45.48420864]
[1644260392814,60.85898708,119.83,119.76,45.48420864]
[1644260393014,70.86898708,119.83,119.76,45.48420864]
[1644260393217,76.86898708,119.83,119.76,45.48420864]
[1644260393615,70.86898708,119.83,119.76,45.48420864]
[1644260394014,73.01581565,119.83,119.76,45.48420864]
[1644260394214,73.01581565,119.83,119.76,6.25]
[1644260394615,73.01581565,119.83,119.76,0.25]
[1644260394815,73.01581565,119.83,119.72,0.024]
[1644260395014,73.26581565,119.83,119.72,0.024]
[1644260395216,71.11898708,119.83,119.72,44.61655778]
[1644260395417,71.11898708,119.83,119.73,0.024]
[1644260396018,73.26581565,119.83,119.73,0.024]
[1644260397119,73.01581565,119.83,119.73,0.024]
[1644260397518,70.86898708,119.83,119.73,0.024]
[1644260398322,58.34528708,119.83,119.73,0.024]
[1644260398520,22.5318,119.85,119.74,40.66448778]
[1644260398722,2.14682857,119.86,119.75,0.024]
[1644260398920,56.0698,119.87,119.75,0.024]
[1644260399322,62.0698,119.87,119.75,0.024]
[1644260399521,39.9442058,119.86,119.76,12.5201]
[1644260399723,39.9442058,119.86,119.77,36.94309595]
[1644260400125,39.9442058,119.86,119.77,43.19309595]
[1644260401321,52.4651058,119.86,119.77,43.19309595]
[1644260401521,39.9442058,119.86,119.77,55.71209595]
[1644260401721,4.173,119.89,119.77,55.71209595]
[1644260401922,0.03708203,119.91,119.78,14.182]
[1644260402122,0.03708203,119.91,119.78,70.66252832]
[1644260402323,0.03708203,119.92,119.79,3.10671997]
[1644260402521,0.03708203,119.9,119.8,39.1582]
[1644260402722,46.37396884,119.96,119.8,82.84598856]
[1644260402923,46.37396884,119.96,119.8,86.92626024]
[1644260403120,46.37396884,119.96,119.82,40.84780355]
[1644260403322,58.88456884,119.96,119.86,12.5095]
[1644260403528,0.03708203,119.96,119.87,34.3602565]
[1644260403724,0.03708203,119.96,119.87,46.53998482]
[1644260403923,24.2567,120.03,119.88,4.168]
[1644260403924,0.03708203,119.97,119.88,4.168]
[1644260404123,0.03708203,119.95,119.89,10.01]
[1644260404324,0.03708203,119.99,119.9,4.168]
[1644260404522,0.03708203,120.01,119.91,52.9476695]
[1644260404724,0.03708203,119.98,119.91,53.1976695]
[1644260404927,0.03708203,120.0,119.91,61.11739782]
[1644260405128,0.03708203,120.02,119.93,35.0480722]
[1644260405329,0.03708203,120.02,119.94,12.5012]
[1644260405529,49.70417832,120.03,119.93,41.2980722]
[1644260405733,0.03708203,120.02,119.94,6.0]
[1644260405928,41.33139629,120.03,119.95,38.6555819]
[1644260406130,10.04708203,120.02,119.95,38.6555819]
[1644260406328,37.25245942,120.01,119.95,38.9055819]
[1644260406728,37.25245942,120.01,119.95,44.9055819]
[1644260407950,37.25245942,120.01,119.95,6.25]
[1644260408149,37.25245942,120.01,119.92,6.0]
[1644260408352,2.14682857,120.0,119.9,6.0]
[1644260408558,0.32199872,119.98,119.87,6.0]
[1644260408755,10.33199872,119.98,119.87,6.0]
[1644260408952,39.3549869,119.96,119.84,46.18351479]
[1644260409152,0.03708203,119.95,119.84,46.18351479]